bitfinex-derivatives/quotes_BTCF0:USTF0_20250910
["timestamp","ask_amount","ask_price","bid_price","bid_amount"]
[1757511854938,0.00549508,114050.0,114040.0,2.20535348]
[1757511855145,0.00042,114060.0,114050.0,0.61201008]
[1757511855347,0.00042,114060.0,114050.0,2.02985008]
[1757511855544,0.01356,114060.0,114050.0,2.02985008]
[1757511855746,0.01356,114060.0,114050.0,2.02981008]
[1757511856149,0.01356,114060.0,114050.0,1.0284639]
[1757511856445,0.01456,114060.0,114050.0,2.02957008]
[1757511857049,0.01356,114060.0,114050.0,2.02945008]
[1757511857546,0.01356,114060.0,114050.0,1.19201008]
[1757511857734,0.01456,114060.0,114050.0,2.02917008]
[1757511858444,0.01356,114060.0,114050.0,2.03798067]
[1757511859942,0.01356,114060.0,114050.0,1.20082067]
[1757511860143,0.01356,114060.0,114050.0,2.03706067]
[1757511861842,0.01356,114060.0,114050.0,1.87351449]
[1757511862242,0.01356,114060.0,114050.0,2.03706067]
[1757511862452,0.01356,114060.0,114050.0,2.22220011]
[1757511863745,0.01356,114060.0,114050.0,1.87351449]
[1757511863941,0.01356,114060.0,114050.0,2.22220011]
[1757511864250,0.01356,114060.0,114050.0,1.38596011]
[1757511864450,0.01356,114060.0,114050.0,2.22136001]
[1757511865351,0.01356,114060.0,114050.0,1.87267439]
[1757511865555,0.01356,114060.0,114050.0,2.22136001]
[1757511865751,0.01356,114060.0,114050.0,1.87267439]
[1757511865951,0.01356,114060.0,114050.0,1.03727439]
[1757511866151,0.01356,114060.0,114050.0,2.22136001]
[1757511866847,0.01356,114060.0,114050.0,1.87267439]
[1757511867046,0.01356,114060.0,114050.0,2.22136001]
[1757511871150,0.01356,114060.0,114050.0,1.87267439]
[1757511871456,0.01356,114060.0,114050.0,2.22136001]
[1757511872248,0.01356,114060.0,114050.0,2.28347491]
[1757511872454,0.01356,114060.0,114050.0,2.22136001]
[1757511876754,0.01356,114060.0,114050.0,2.42944992]
[1757511876959,0.01356,114060.0,114050.0,2.28364992]
[1757511877454,0.00042,114060.0,114050.0,2.28364992]
[1757511877659,0.01356,114060.0,114050.0,1.9349643]
[1757511877861,0.01356,114060.0,114050.0,2.29900031]
[1757511878255,0.01356,114060.0,114050.0,2.22136001]
[1757511878658,0.01356,114060.0,114050.0,2.29900031]
[1757511879056,0.00042,114060.0,114050.0,2.29900031]
[1757511879462,0.01352,114060.0,114050.0,2.29900031]
[1757511879862,0.01352,114060.0,114050.0,1.95031469]
[1757511880358,0.01352,114060.0,114050.0,2.22136001]
[1757511880662,0.01352,114060.0,114050.0,2.30080031]
[1757511881072,0.01352,114060.0,114050.0,2.36304965]
[1757511881364,0.01352,114060.0,114050.0,2.28540935]
[1757511881759,0.00042,114060.0,114050.0,2.28540935]
[1757511882765,0.00042,114060.0,114050.0,1.93672373]
[1757511882957,0.00042,114060.0,114050.0,2.28540935]
[1757511883359,0.01352,114060.0,114050.0,2.28540935]
[1757511883971,0.01352,114060.0,114050.0,2.22316001]
[1757511884659,0.00042,114060.0,114050.0,2.22316001]
[1757511884853,0.00042,114060.0,114050.0,2.30080031]
[1757511885251,0.00042,114060.0,114050.0,2.22316001]
[1757511885457,0.00042,114060.0,114050.0,2.30080031]
[1757511885458,0.01352,114060.0,114050.0,2.30080031]
[1757511885666,0.00042,114060.0,114050.0,2.30080031]
[1757511885963,0.01352,114060.0,114050.0,2.30080031]
[1757511886261,0.01352,114060.0,114050.0,1.46360031]
[1757511886461,0.63338562,114060.0,114050.0,0.42304771]
[1757511886669,0.63338562,114060.0,114050.0,0.3608]
[1757511886866,0.2847,114060.0,114050.0,0.53514281]
[1757511887055,0.45904281,114060.0,114050.0,1.43208278]
[1757511887461,0.45904281,114060.0,114050.0,1.37282281]
[1757511887657,0.63338562,114060.0,114050.0,0.42605997]
[1757511887860,0.63338562,114060.0,114050.0,0.43005997]
[1757511888060,0.63338562,114060.0,114050.0,1.26441997]
[1757511888261,0.63338562,114060.0,114050.0,1.26041997]
[1757511888579,0.2847,114060.0,114050.0,1.26341997]
[1757511888867,0.517274,114060.0,114050.0,1.26241997]
[1757511889072,0.2847,114060.0,114050.0,1.25941997]
[1757511889372,0.517274,114060.0,114050.0,1.19716]
[1757511889868,0.517274,114060.0,114050.0,1.19724]
[1757511890463,0.517274,114060.0,114050.0,1.19512]
[1757511890662,0.517274,114060.0,114050.0,0.3608]
[1757511890862,0.517274,114060.0,114050.0,1.19488]
[1757511891659,0.2847,114060.0,114050.0,0.3608]
[1757511891866,0.03428,114050.0,114040.0,0.42305997]
[1757511892064,0.266854,114050.0,114040.0,0.42305997]
[1757511892264,0.266854,114050.0,114040.0,0.06225997]
[1757511892265,0.516854,114050.0,114040.0,0.06225997]
[1757511892570,0.03428,114040.0,114030.0,0.42305997]
[1757511892771,0.516854,114040.0,114030.0,0.42305997]
[1757511893269,0.03428,114040.0,114030.0,0.44524997]
[1757511893572,0.03428,114040.0,114030.0,0.56153697]
[1757511893772,0.22137008,114040.0,114030.0,0.44524997]
[1757511894071,0.15923102,114040.0,114030.0,1.28000997]
[1757511894269,0.04294402,114040.0,114030.0,1.28000997]
[1757511894464,0.04294402,114040.0,114030.0,1.48497637]
[1757511894674,0.0131,114040.0,114030.0,1.4227164]
[1757511894868,0.0131,114040.0,114030.0,1.4237164]
[1757511895065,0.0131,114040.0,114030.0,0.501277]
[1757511895366,0.03428,114040.0,114030.0,1.39864447]
[1757511895560,0.04296511,114040.0,114030.0,1.39864447]
[1757511896076,0.04296511,114040.0,114030.0,1.336357]
[1757511896077,0.03428,114040.0,114030.0,1.336357]
[1757511896576,0.0131,114050.0,114030.0,1.4316064]
[1757511896876,0.03428,114050.0,114040.0,0.56157453]
[1757511897173,0.33713191,114050.0,114040.0,0.42309753]
[1757511897474,0.03428,114040.0,114030.0,0.501277]
[1757511897772,0.0131,114040.0,114030.0,1.7835564]
[1757511897968,0.0131,114040.0,114030.0,1.7825564]
[1757511898168,0.02225258,114060.0,114030.0,2.068734]
[1757511898365,0.04343258,114060.0,114050.0,0.92236439]
[1757511898561,0.04343258,114060.0,114050.0,1.64051739]
[1757511898774,0.04343258,114060.0,114050.0,1.75680439]
[1757511899269,0.0347,114060.0,114050.0,1.75680439]
[1757511899473,0.0347,114060.0,114050.0,1.75652439]
[1757511899866,0.0347,114060.0,114050.0,1.64023739]
[1757511900073,0.01352,114060.0,114050.0,1.665614]
[1757511900273,0.00042,114060.0,114050.0,1.694237]
[1757511900566,0.00042,114060.0,114050.0,2.1103301]
[1757511900765,0.00042,114060.0,114050.0,1.26759839]
[1757511900970,0.00042,114060.0,114050.0,1.98547139]
[1757511901159,0.00042,114060.0,114050.0,1.15131139]
[1757511901365,0.00042,114060.0,114050.0,2.10167839]
[1757511901565,0.18060673,114080.0,114070.0,0.02219]
[1757511901761,0.06431973,114080.0,114070.0,1.21831]
[1757511901970,0.06431973,114080.0,114070.0,1.57911]
[1757511902274,0.17163355,114080.0,114070.0,1.57911]
[1757511902575,0.17163355,114080.0,114070.0,0.74379]
[1757511902871,0.17163355,114080.0,114070.0,1.57939]
[1757511903467,0.15245355,114080.0,114070.0,1.57939]
[1757511903667,0.15245355,114080.0,114070.0,1.695677]
[1757511904064,0.03616655,114080.0,114070.0,1.57939]
[1757511904374,0.15345355,114080.0,114070.0,1.57939]
[1757511904670,0.03716655,114080.0,114070.0,1.695677]
[1757511905370,0.03716655,114080.0,114070.0,1.57939]
[1757511905881,0.01652,114080.0,114070.0,1.57939]
[1757511906169,0.00342,114080.0,114070.0,1.58696]
[1757511906369,0.00342,114080.0,114070.0,1.57939]
[1757511906567,0.00342,114080.0,114070.0,1.7908957]
[1757511906876,0.00342,114080.0,114070.0,2.1708957]
[1757511907464,0.00342,114080.0,114070.0,2.5371827]
[1757511907670,0.05005639,114090.0,114080.0,0.106381]
[1757511907868,0.05005639,114090.0,114080.0,0.612114]
[1757511908073,0.05005639,114090.0,114080.0,1.447074]
[1757511908470,0.05005639,114090.0,114080.0,1.51865855]
[1757511908780,0.01352,114100.0,114090.0,0.0876332]
[1757511908781,0.00042,114100.0,114090.0,0.0876332]
[1757511908967,0.01348,114100.0,114090.0,3.11364]
[1757511909169,0.01348,114100.0,114090.0,3.346214]
[1757511909368,0.01348,114100.0,114090.0,3.2838472]
[1757511909670,0.00042,114100.0,114090.0,2.6993672]
[1757511909873,0.00042,114100.0,114090.0,3.5340872]
[1757511910071,0.00442,114100.0,114090.0,3.5340872]
[1757511910271,0.01348,114150.0,114110.0,0.0876179]
[1757511910475,0.01306,114130.0,114110.0,0.51]
[1757511910677,0.03374988,114130.0,114120.0,0.951407]
[1757511910977,0.01306,114130.0,114120.0,1.07633411]
[1757511911174,0.05654784,114130.0,114120.0,0.7216]
[1757511911366,0.05654784,114130.0,114120.0,1.612767]
[1757511911571,0.03374784,114130.0,114120.0,2.13540563]
[1757511911766,0.03336801,114130.0,114120.0,1.27291593]
[1757511912075,0.03336801,114130.0,114120.0,2.19712563]
[1757511912376,0.01306,114130.0,114120.0,1.27291593]
[1757511912571,0.01306,114130.0,114120.0,2.10923593]
[1757511912769,0.01306,114130.0,114120.0,2.20684523]
[1757511912969,0.01306,114130.0,114120.0,1.97427123]
[1757511913169,0.01306,114140.0,114120.0,2.23552293]
[1757511913366,0.03335707,114140.0,114130.0,0.477087]
[1757511913570,0.05615707,114140.0,114130.0,0.477087]
[1757511913774,0.05615707,114140.0,114130.0,1.2006]
[1757511913971,0.05615707,114140.0,114130.0,1.316887]
[1757511914169,0.05615707,114140.0,114130.0,1.2006]
[1757511914472,0.03335707,114140.0,114130.0,1.316887]
[1757511914680,0.03335707,114140.0,114130.0,1.404489]
[1757511914981,0.01348,114150.0,114130.0,1.770772]
[1757511915172,0.03376201,114150.0,114140.0,1.435174]
[1757511915374,0.03376201,114150.0,114140.0,1.20292]
[1757511915880,0.30656201,114150.0,114140.0,1.2038]
[1757511916378,0.01306,114160.0,114140.0,1.88207199]
[1757511916575,0.01306,114160.0,114150.0,0.95634095]
[1757511916777,0.03586,114160.0,114150.0,0.11296695]
[1757511916977,0.03586,114160.0,114150.0,0.95976695]
[1757511917175,0.01306,114160.0,114150.0,1.76895335]
[1757511917477,0.03586,114160.0,114150.0,0.83456695]
[1757511917684,0.03586,114160.0,114150.0,0.95085395]
[1757511917885,0.03586,114160.0,114150.0,0.83456695]
[1757511918083,0.03586,114160.0,114150.0,0.95085395]
[1757511918383,0.03586,114160.0,114150.0,0.7216]
[1757511918384,0.518434,114160.0,114150.0,0.7216]
[1757511918677,0.25,114160.0,114150.0,1.54586551]
[1757511918880,0.06347553,114210.0,114150.0,4.29599951]
[1757511919082,0.01306,114160.0,114150.0,1.76756]
[1757511919282,0.00048206,114170.0,114150.0,3.56652899]
[1757511919476,0.00048206,114170.0,114160.0,0.91626438]
[1757511919784,0.00048206,114170.0,114160.0,0.92995987]
[1757511920086,0.00048206,114170.0,114160.0,0.91626438]
[1757511920276,0.00048206,114170.0,114160.0,1.12013058]
[1757511920579,0.13956906,114170.0,114160.0,0.69269038]
[1757511920785,0.13956906,114170.0,114160.0,1.23372]
[1757511920987,0.02328206,114170.0,114160.0,1.466294]
[1757511921180,0.38956906,114170.0,114160.0,1.23372]
[1757511921483,0.27328206,114170.0,114160.0,1.23372]
[1757511921673,0.27328206,114170.0,114160.0,0.3698]
[1757511921878,0.27328206,114170.0,114160.0,0.486087]
[1757511922077,0.27328206,114170.0,114160.0,1.354127]
[1757511922277,0.02328206,114170.0,114160.0,1.470414]
[1757511922677,0.75036906,114170.0,114160.0,0.009]
[1757511922983,0.03586,114150.0,114140.0,0.3608]
[1757511923383,0.03586,114150.0,114140.0,0.477087]
[1757511923688,0.01306,114150.0,114140.0,0.9289397]
[1757511923988,0.03586,114150.0,114140.0,0.9289397]
[1757511924384,0.152147,114150.0,114140.0,0.3608]
[1757511924574,0.152147,114150.0,114140.0,0.3734768]
[1757511924773,0.03586,114150.0,114140.0,0.593374]
[1757511924978,0.01306,114150.0,114140.0,1.38282388]
[1757511925184,0.01306,114150.0,114140.0,1.25885918]
[1757511925385,0.01306,114150.0,114140.0,1.18494063]
[1757511925784,0.01306,114150.0,114140.0,1.17994063]
[1757511925979,0.01306,114150.0,114140.0,1.38682233]
[1757511926182,0.01306,114150.0,114140.0,1.38582233]
[1757511926487,0.01306,114150.0,114140.0,1.73216758]
[1757511926488,0.03686,114150.0,114140.0,1.73216758]
[1757511927487,0.01406,114150.0,114140.0,1.57008663]
[1757511927787,0.01406,114150.0,114140.0,1.98216758]
[1757511927981,0.01406,114150.0,114140.0,0.94936663]
[1757511928288,0.03686,114150.0,114140.0,1.73252758]
[1757511928489,0.05586947,114150.0,114140.0,1.73252758]
[1757511928687,0.05586947,114150.0,114140.0,0.37647625]
[1757511928886,0.05586947,114150.0,114140.0,1.2352]
[1757511929687,0.05586947,114150.0,114140.0,0.3638]
[1757511930485,0.05586947,114150.0,114140.0,0.52588095]
[1757511930789,0.05586947,114150.0,114140.0,1.40068095]
[1757511930991,0.05586947,114150.0,114140.0,1.72357133]
[1757511931482,0.05586947,114150.0,114140.0,1.72385133]
[1757511931884,0.03306947,114150.0,114140.0,1.81144623]
[1757511932079,0.03306947,114150.0,114140.0,2.06144623]
[1757511932284,0.01406,114150.0,114140.0,2.06144623]
[1757511932491,0.01406,114150.0,114140.0,1.97385133]
[1757511932792,0.03308542,114150.0,114140.0,1.97385133]
[1757511933179,0.03308542,114150.0,114140.0,0.93669038]
[1757511933384,0.03308542,114150.0,114140.0,1.72489133]
[1757511933594,0.03308542,114150.0,114140.0,0.84877133]
[1757511933595,0.05588542,114150.0,114140.0,0.84877133]
[1757511933789,0.05588542,114150.0,114140.0,1.72465133]
[1757511934292,0.05588542,114150.0,114140.0,0.3638]
[1757511934491,0.21796637,114150.0,114140.0,0.003]
[1757511934991,0.22694252,114150.0,114140.0,0.003]
[1757511935191,0.05588542,114150.0,114140.0,0.003]
[1757511935490,0.03686,114150.0,114140.0,0.3638]
[1757511936496,0.19894095,114150.0,114140.0,0.3638]
[1757511936688,0.44894095,114150.0,114140.0,0.3638]
[1757511936896,0.03586,114130.0,114110.0,2.15941592]
[1757511937193,0.01306,114120.0,114110.0,1.56093038]
[1757511937490,0.01306,114120.0,114110.0,1.72301133]
[1757511937689,0.03586,114120.0,114110.0,0.68369038]
[1757511938391,0.03586,114120.0,114110.0,0.84677133]
[1757511938593,0.02986,114120.0,114110.0,0.7159063]
[1757511938781,0.02986,114120.0,114110.0,0.85077133]
[1757511939293,0.02986,114120.0,114110.0,1.40356095]
[1757511939488,0.02986,114120.0,114110.0,1.40756095]
[1757511939687,0.02986,114120.0,114110.0,1.73045133]
[1757511940086,0.02986,114120.0,114110.0,1.72945133]
[1757511940582,0.02986,114120.0,114110.0,1.72645133]
[1757511940782,0.02986,114120.0,114110.0,1.56437038]
[1757511940988,0.02986,114120.0,114110.0,0.84777133]
[1757511941292,0.02986,114120.0,114110.0,1.56345038]
[1757511941693,0.02986,114120.0,114110.0,1.56245038]
[1757511942394,0.02986,114120.0,114110.0,1.72453133]
[1757511942796,0.00706,114120.0,114110.0,1.72453133]
[1757511943191,0.00706,114120.0,114110.0,1.72361133]
[1757511944386,0.00706,114120.0,114110.0,1.72325133]
[1757511944893,0.02823,114120.0,114110.0,0.84677133]
[1757511945094,0.02823,114120.0,114110.0,1.56073038]
[1757511945302,0.02823,114120.0,114110.0,0.68469038]
[1757511945599,0.02823,114120.0,114110.0,1.56057038]
[1757511946099,0.02823,114120.0,114110.0,1.72265133]
[1757511946501,0.02823,114120.0,114110.0,1.56057038]
[1757511946702,0.02823,114120.0,114110.0,1.72853133]
[1757511947001,0.01306,114130.0,114120.0,0.0876105]
[1757511947201,0.01306,114130.0,114120.0,0.61049145]
[1757511947394,0.03423,114130.0,114120.0,1.56661038]
[1757511947800,0.03423,114130.0,114120.0,1.72869133]
[1757511948097,0.03423,114130.0,114120.0,0.68369038]
[1757511948295,0.03423,114130.0,114120.0,0.84577133]
[1757511948501,0.03523,114130.0,114120.0,1.56941038]
[1757511948690,0.03523,114130.0,114120.0,1.73149133]
[1757511948892,0.03523,114130.0,114120.0,0.84777133]
[1757511949105,0.03523,114130.0,114120.0,1.57009038]
[1757511949991,0.03523,114130.0,114120.0,1.73217133]
[1757511950199,0.03523,114130.0,114120.0,1.79445872]
[1757511950395,0.03523,114130.0,114120.0,1.73337154]
[1757511950703,0.01406,114130.0,114120.0,1.73337154]
[1757511951694,0.01406,114130.0,114120.0,1.9842631]
[1757511951897,0.01406,114130.0,114120.0,2.2342631]
[1757511952100,0.01406,114130.0,114120.0,2.29640039]
[1757511952294,0.01357,114140.0,114130.0,0.0875962]
[1757511952496,0.01357,114140.0,114130.0,0.85055866]
[1757511952999,0.01357,114140.0,114130.0,1.01383982]
[1757511953197,0.01357,114150.0,114130.0,1.26384102]
[1757511953400,0.01357,114150.0,114140.0,1.61761525]
[1757511953701,0.01357,114150.0,114140.0,1.63078606]
[1757511954101,0.01357,114150.0,114140.0,0.74742606]
[1757511954503,0.01357,114150.0,114140.0,1.63030606]
[1757511954803,0.03474,114150.0,114140.0,1.63090606]
[1757511955104,0.03474,114150.0,114140.0,0.74742606]
[1757511955302,0.03874,114150.0,114140.0,0.74742606]
[1757511955493,0.03874,114150.0,114140.0,1.63074606]
[1757511955799,0.03874,114150.0,114140.0,1.63062606]
[1757511955994,0.03674,114150.0,114140.0,1.63038606]
[1757511956199,0.03674,114150.0,114140.0,0.74942606]
[1757511956396,0.03474,114150.0,114140.0,1.66491563]
[1757511956593,0.03474,114150.0,114140.0,0.78243563]
[1757511956802,0.44802116,114150.0,114140.0,0.39580957]
[1757511957001,0.97210232,114150.0,114140.0,0.004]
[1757511957304,0.03474,114140.0,114130.0,0.03100957]
[1757511957602,0.03474,114140.0,114120.0,0.40737293]
[1757511957603,0.01357,114120.0,114100.0,0.03104233]
[1757511957799,0.03474,114100.0,114090.0,0.04657293]
[1757511957994,0.19802116,114100.0,114090.0,0.04657293]
[1757511958205,0.03474,114100.0,114090.0,0.76897606]
[1757511958995,0.03474,114100.0,114090.0,0.77197606]
[1757511959298,0.01357,114110.0,114090.0,0.73140313]
[1757511959500,0.19802116,114100.0,114090.0,0.43789757]
[1757511959693,0.19802116,114100.0,114090.0,1.42063954]
[1757511959894,0.03474,114100.0,114090.0,1.42063954]
[1757511960301,0.03474,114100.0,114090.0,0.59011954]
[1757511960602,0.03474,114100.0,114090.0,0.05254757]
[1757511960603,0.64554,114100.0,114090.0,0.05254757]
[1757511960801,0.03474,114090.0,114080.0,0.04654757]
[1757511961108,0.39554,114090.0,114080.0,0.04654757]
[1757511961299,0.19802116,114090.0,114080.0,0.40734757]
[1757511961505,0.19802116,114090.0,114080.0,0.04654757]
[1757511961896,0.03474,114090.0,114080.0,0.04654757]
[1757511962098,0.03674,114090.0,114080.0,0.04654757]
[1757511962305,0.03774,114090.0,114080.0,0.60566954]
[1757511962602,0.003,114090.0,114080.0,0.8565919]
[1757511962797,0.003,114090.0,114080.0,0.8565918]
[1757511963001,0.003,114090.0,114080.0,1.13362356]
[1757511963614,0.003,114090.0,114080.0,1.04598246]
[1757511963907,0.003,114090.0,114080.0,1.91699246]
[1757511964203,0.003,114090.0,114080.0,2.00463356]
[1757511964509,0.003,114090.0,114080.0,1.91699246]
[1757511964712,0.003,114090.0,114080.0,2.00463356]
[1757511964908,0.01357,114130.0,114100.0,0.16928116]
[1757511965102,0.01357,114130.0,114110.0,0.52176721]
[1757511965103,0.03474,114120.0,114110.0,0.52176721]
[1757511965298,0.19802116,114120.0,114110.0,0.52176721]
[1757511965703,0.03474,114120.0,114110.0,0.52176721]
[1757511966110,0.02117,114120.0,114110.0,0.52176721]
[1757511966610,0.01357,114130.0,114110.0,0.7430643]
[1757511966903,0.19802116,114130.0,114120.0,1.26319]
[1757511967110,0.02117,114130.0,114120.0,1.40260721]
[1757511967411,0.10361006,114140.0,114120.0,1.40260721]
[1757511967412,0.02029405,114140.0,114130.0,0.0876029]
[1757511967600,0.03474,114160.0,114150.0,0.02155]
[1757511967800,0.03474,114150.0,114140.0,0.02155]
[1757511968003,0.55882116,114150.0,114140.0,0.88215]
[1757511968301,0.03474,114150.0,114140.0,1.28949593]
[1757511968507,1.53474,114150.0,114140.0,1.28949593]
[1757511969099,1.53874,114150.0,114140.0,1.31153593]
[1757511969509,2.11530232,114150.0,114140.0,0.04654593]
[1757511969710,0.03488,114140.0,114130.0,1.18024143]
[1757511969910,0.19816116,114140.0,114130.0,0.40732143]
[1757511970105,0.03488,114140.0,114130.0,1.28956143]
[1757511970302,1.53711,114150.0,114140.0,0.02189]
[1757511970503,0.01334,114140.0,114130.0,1.2896456]
[1757511970908,0.19816116,114140.0,114130.0,1.3114156]
[1757511971210,0.03488,114140.0,114130.0,1.3114156]
[1757511971406,1.51357,114150.0,114130.0,1.48616676]
[1757511971606,1.51357,114150.0,114130.0,0.60396676]
[1757511971814,1.69839116,114150.0,114140.0,0.02189]
[1757511972304,1.69839116,114150.0,114140.0,0.38269]
[1757511972610,1.69839116,114150.0,114130.0,0.4073256]
[1757511972611,2.11267232,114150.0,114130.0,0.4073256]
[1757511972808,0.03488,114140.0,114130.0,0.4073256]
[1757511973109,0.03488,114130.0,114120.0,1.2930456]
[1757511973300,0.19816116,114130.0,114120.0,1.2930456]
[1757511973506,0.03488,114130.0,114120.0,1.2930456]
[1757511973708,0.19816116,114130.0,114120.0,1.2930456]
[1757511974904,0.01334,114140.0,114120.0,1.45632676]
[1757511975115,0.01334,114140.0,114130.0,0.59249676]
[1757511975116,0.02154,114140.0,114130.0,0.59249676]
[1757511975318,0.02154,114140.0,114130.0,0.4292156]
[1757511975709,1.51357,114150.0,114130.0,0.59249676]
[1757511976007,1.51357,114150.0,114140.0,1.24844]
[1757511976408,1.67685116,114150.0,114140.0,1.24844]
[1757511976712,1.67685116,114150.0,114140.0,1.2949656]
[1757511976915,1.51357,114150.0,114140.0,1.2949656]
[1757511977114,1.67685116,114150.0,114140.0,1.2949656]
[1757511977309,1.67685116,114150.0,114140.0,1.45824676]
[1757511977310,1.51357,114150.0,114140.0,1.45824676]
[1757511977514,1.5,114150.0,114140.0,1.2949656]
[1757511977713,1.502,114150.0,114140.0,1.2949656]
[1757511977906,1.502,114150.0,114140.0,1.47181676]
[1757511978102,1.504,114150.0,114140.0,1.3085356]
[1757511978308,1.504,114150.0,114140.0,1.2949656]
[1757511979016,1.504,114150.0,114140.0,1.47181676]
[1757511979017,0.004,114150.0,114140.0,1.47181676]
[1757511979220,0.004,114150.0,114140.0,1.72181676]
[1757511980511,0.004,114150.0,114140.0,0.83417676]
[1757511980711,0.004,114150.0,114140.0,1.74162676]
[1757511980917,0.004,114150.0,114140.0,1.82922206]
[1757511981914,0.004,114150.0,114140.0,1.74162676]
[1757511982406,0.004,114150.0,114140.0,1.5783456]
[1757511982606,0.004,114150.0,114140.0,1.74162676]
[1757511982820,0.004,114150.0,114140.0,1.82922186]
[1757511983713,0.004,114150.0,114140.0,1.6659407]
[1757511983913,0.004,114150.0,114140.0,1.82922186]
[1757511984610,0.004,114150.0,114140.0,1.74162676]
[1757511984819,0.004,114150.0,114140.0,1.49162676]
[1757511985119,0.004,114150.0,114140.0,1.48818676]
[1757511985313,0.004,114150.0,114140.0,0.60606676]
[1757511985521,0.004,114150.0,114140.0,1.3242656]
[1757511985708,0.004,114150.0,114140.0,1.47397676]
[1757511985907,0.02554,114150.0,114140.0,0.54597116]
[1757511986212,0.20216116,114150.0,114140.0,1.26373]
[1757511986415,0.03888,114150.0,114140.0,1.26369]
[1757511986714,0.45216116,114150.0,114140.0,0.38269]
[1757511986910,0.45216116,114150.0,114140.0,1.2416]
[1757511987115,0.45216116,114150.0,114140.0,0.3608]
[1757511987415,0.45216116,114150.0,114130.0,0.37873276]
[1757511987610,0.01334,114140.0,114130.0,1.25933276]
[1757511988021,1.76334,114140.0,114130.0,1.42261392]
[1757511988215,1.76334,114140.0,114130.0,1.46913952]
[1757511988415,1.76334,114140.0,114130.0,1.42261392]
[1757511988614,0.16528116,114150.0,114130.0,1.42261392]
[1757511988816,0.01334,114200.0,114160.0,0.0357]
[1757511989018,0.02154,114180.0,114170.0,0.0357]
[1757511989312,0.02154,114180.0,114170.0,0.7573]
[1757511989313,0.43482116,114180.0,114170.0,0.7573]
[1757511989521,0.28488,114180.0,114170.0,0.74349]
[1757511989719,0.44816116,114180.0,114170.0,0.7216]
[1757511990111,0.28488,114180.0,114170.0,0.7216]
[1757511990417,1.16784,114180.0,114170.0,0.7216]
[1757511990915,1.16768,114180.0,114170.0,0.7216]
[1757511991221,1.33196116,114180.0,114170.0,0.7216]
[1757511991417,1.35115146,114180.0,114160.0,0.52408116]
[1757511991623,1.10115146,114180.0,114160.0,0.52408116]
[1757511991824,0.9378703,114180.0,114160.0,0.52408116]
[1757511992124,1.10115146,114180.0,114160.0,0.52408116]
[1757511992421,0.9378703,114180.0,114160.0,0.52408116]
[1757511992623,0.88476,114170.0,114160.0,0.52508116]
[1757511992925,0.02154,114170.0,114160.0,0.90777116]
[1757511993323,0.02154,114170.0,114160.0,0.92158116]
[1757511993515,0.02225871,114190.0,114160.0,0.92158116]
[1757511993822,0.001,114180.0,114170.0,0.0357]
[1757511994019,0.001,114180.0,114170.0,0.3965]
[1757511994523,0.09442,114200.0,114170.0,0.3965]
[1757511994524,0.9998,114200.0,114190.0,0.02189]
[1757511994723,1.02813619,114200.0,114190.0,0.74349]
[1757511994920,1.02813619,114200.0,114190.0,0.90677116]
[1757511994921,1.01913581,114200.0,114190.0,0.90677116]
[1757511995317,0.12183581,114200.0,114190.0,0.90677116]
[1757511995520,0.12183581,114200.0,114190.0,0.92058116]
[1757511996223,0.10029581,114200.0,114190.0,0.92058116]
[1757511996424,0.10029581,114200.0,114190.0,0.99180244]
[1757511996623,0.10029581,114200.0,114190.0,0.82852128]
[1757511996824,0.10029581,114200.0,114190.0,1.07935944]
[1757511997020,0.10629581,114200.0,114190.0,1.07935944]
[1757511997325,0.10629581,114200.0,114190.0,0.99180244]
[1757511997523,0.0983972,114200.0,114190.0,0.99180244]
[1757511997717,0.02021581,114200.0,114190.0,0.99180244]
[1757511997920,0.02221581,114200.0,114190.0,0.99180244]
[1757511998925,0.02221581,114200.0,114190.0,0.82852128]
[1757511999127,0.02221581,114200.0,114190.0,0.99180244]
[1757511999327,0.02221581,114200.0,114190.0,0.82852128]
[1757511999522,0.02221581,114200.0,114190.0,0.99180244]
[1757512000029,0.02221581,114200.0,114190.0,1.32935944]
[1757512000218,0.02221581,114200.0,114190.0,1.16607828]
[1757512000419,0.01588191,114200.0,114190.0,1.16607828]
[1757512000629,0.003,114200.0,114190.0,0.44447838]
[1757512001133,0.003,114200.0,114190.0,0.52020244]
[1757512001526,0.003,114200.0,114190.0,0.10692128]
[1757512001823,0.001,114200.0,114190.0,0.52220244]
[1757512002027,0.001,114200.0,114190.0,0.35892128]
[1757512002416,0.00042,114210.0,114190.0,0.83052128]
[1757512002622,0.00042,114210.0,114200.0,0.55999116]
[1757512002829,0.00042,114210.0,114200.0,0.39671]
[1757512003426,0.00042,114210.0,114200.0,0.55999116]
[1757512003732,0.00042,114210.0,114200.0,0.39671]
[1757512004420,0.00042,114210.0,114200.0,0.97627232]
[1757512004620,0.00042,114210.0,114200.0,1.06382172]
[1757512004824,0.00042,114210.0,114200.0,0.7372594]
[1757512005225,0.00042,114210.0,114200.0,0.90054056]
[1757512005421,0.00042,114210.0,114200.0,0.97627232]
[1757512005624,0.13149,114220.0,114210.0,0.03591]
[1757512005924,0.15428,114220.0,114210.0,0.39671]
[1757512006123,0.13149,114220.0,114210.0,0.39671]
[1757512006325,0.13149,114220.0,114210.0,0.72327232]
[1757512006530,0.13149,114220.0,114210.0,0.97327232]
[1757512007028,0.13149,114220.0,114210.0,1.06181412]
[1757512007236,0.06149,114220.0,114210.0,1.06181412]
[1757512007438,0.00042,114230.0,114210.0,0.72427232]
[1757512007733,0.03641,114230.0,114220.0,0.3608]
[1757512008135,0.00042,114230.0,114220.0,0.52408116]
[1757512008327,0.00042,114230.0,114220.0,1.65100116]
[1757512008729,0.00042,114230.0,114220.0,1.90100116]
[1757512009139,0.00042,114230.0,114220.0,1.98853526]
[1757512009328,0.00042,114230.0,114220.0,1.73772]
[1757512009631,0.01362,114230.0,114220.0,0.52408116]
[1757512009832,0.01362,114230.0,114220.0,1.64996116]
[1757512009833,0.00142,114230.0,114220.0,1.64996116]
[1757512010035,0.00142,114230.0,114220.0,1.73749526]
[1757512010430,0.00142,114230.0,114220.0,1.98607574]
[1757512011230,0.00142,114230.0,114220.0,1.8242141]
[1757512011425,0.00142,114230.0,114220.0,1.98607574]
[1757512012431,0.00142,114230.0,114220.0,1.8242141]
[1757512012627,0.02060373,114230.0,114220.0,1.64854164]